Cogmind - Beta 14 @@@ ROGUE MODE // 2024.09.12 @ 18:52:53 Player: Lunace Result: Destroyed by TT-2K6(E) with Enhanced Autogun Performance ------------- Evolutions (1) 500 Regions Visited (6) 1200 Robots Destroyed (30) 150 Value Destroyed (684) 684 Prototype IDs (13) 260 Alien Tech Used (0) 0 Bonus (394) 394 TOTAL SCORE: 3188 Bonus ------- Follower Combat Kills 267 Registered with UFD 300 Friendly Fire -173 Cogmind --------- Core Integrity 0/400 Matter 254/300 Energy 100/100 System Corruption 3% Temperature Warm (172) Movement Walking (120) Location -9/Scraptown Parts ------- > --- POWER (1) -------- (None) > --- PROPULSION (3) --- Improved Aluminum Leg > --- UTILITY (3) ------ (None) > --- WEAPON (2) ------- Thermal Lance > --- INVENTORY (5) ---- Armored Treads Armored Treads Advanced Beam Cannon Ion Cannon Plasma Cutter Peak State ------------ > --- POWER ------------ Heavy Ion Engine > --- PROPULSION ------- Armored Treads Armored Treads Armored Treads > --- UTILITY ---------- Scrap Suit Large Storage Unit > --- WEAPON ----------- Mini Grenade Launcher Thermal Lance > --- INVENTORY -------- Improved Ion Engine Armored Treads Improved Aluminum Leg Improved Aluminum Leg Improved Aluminum Leg Improved Aluminum Leg Advanced Beam Cannon Advanced Beam Cannon Advanced Beam Cannon Ion Cannon Ion Cannon Plasma Cutter CPS Tube CPS Tube Plasma Flamer [Rating: 37] Favorites ----------- Power Heavy Ion Engine Engine Heavy Ion Engine Propulsion Armored Treads Treads Armored Treads Leg Improved Aluminum Leg Utility Large Storage Unit Device Seismic Detector Storage Large Storage Unit Processor Signal Interpreter Protection Light Armor Plating Weapon Advanced Beam Cannon Energy Gun Medium Laser Energy Cannon Advanced Beam Cannon Ballistic Gun Assault Rifle Launcher Mini Grenade Launcher Piercing Weapon Thermal Lance Build | -11 -10 -10 -9 -9 -9 -9 ------- Run | Yrd Mat Min Mat Sto Rec Scr Slots Evolved 2 | . . . 2 . . . Power . | . . . . . . . Propulsion 1 | . . . 1 . . . Utility 1 | . . . 1 . . . Weapon . | . . . . . . . Parts Attached 41 | 7 5 . 13 7 . 9 Power 4 | 1 . . . 2 . 1 Engine 4 | 1 . . . 2 . 1 Core . | . . . . . . . Reactor . | . . . . . . . Propulsion 12 | 2 2 . 4 . . 4 Treads 5 | 2 . . 3 . . . Leg 7 | . 2 . 1 . . 4 Wheel . | . . . . . . . Hover . | . . . . . . . Flight . | . . . . . . . Utility 8 | 2 1 . 3 1 . 1 Device 2 | 1 . . . . . 1 Storage 3 | 1 1 . 1 . . . Processor 2 | . . . 2 . . . Hackware . | . . . . . . . Protection 1 | . . . . 1 . . Artifact . | . . . . . . . Weapon 17 | 2 2 . 6 4 . 3 Energy Gun 3 | 1 . . 1 1 . . Energy Cannon 10 | . 2 . 4 3 . 1 Ballistic Gun 1 | 1 . . . . . . Ballistic Cannon . | . . . . . . . Launcher 2 | . . . 1 . . 1 Special Weapon . | . . . . . . . Impact Weapon . | . . . . . . . Slashing Weapon . | . . . . . . . Piercing Weapon 1 | . . . . . . 1 Special Melee Weapon . | . . . . . . . Unidentified Prototypes 4 | . . . 1 3 . . Parts Lost 6 | . . . . . . 6 Power 1 | . . . . . . 1 Propulsion 3 | . . . . . . 3 Utility 1 | . . . . . . 1 Weapon 1 | . . . . . . 1 Highest Loss Streak 5 | . . . . . . 5 To Critical Strikes 1 | . . . . . . 1 Average Slot Usage (%) 96 | . 98 100 90 98 100 95 Engine 11 | . 14 14 11 11 11 11 Treads 30 | . 15 . 30 33 33 32 Leg 1 | . 12 28 2 . . . Device 11 | . 14 14 11 11 11 10 Storage 11 | . 14 14 11 11 11 10 Processor 1 | . . . 2 10 . . Protection 6 | . . . . . 11 7 Energy Cannon 20 | . 10 28 21 20 22 20 Peak Build Rating 37 | 7 12 12 22 25 25 37 Average Rating 23 | 5 8 12 19 23 25 27 On Entrance 14 | . 7 12 12 22 25 25 Naked Turns . | . . . . . . . Heaviest Build 40 | 15 24 24 38 40 40 40 Greatest Support 60 | 40 40 26 60 60 60 60 Greatest Overweight (x) 1 | . 1 . . . . . Average Overweight (x) . | . . . . . . . Largest Inventory Capacity 15 | 8 10 10 15 15 15 15 Average Capacity 14 | 7 8 10 14 15 15 14 Most Carried 15 | 1 6 8 15 15 15 15 Average Carried 13 | . 2 6 10 14 15 14 Final Capacity 15 | 8 10 10 15 15 15 5 Final Carried 15 | 1 6 8 15 15 15 5 Class Distribution -------------------- 94% | Mutant 5% | Commander-Mutant Dominant Class ---------------- Mutant | -10/Materials Mutant | -10/Mines Mutant | -9/Materials Mutant | -9/Storage Mutant | -9/Recycling Mutant | -9/Scraptown Resources | -11 -10 -10 -9 -9 -9 -9 ----------- Run | Yrd Mat Min Mat Sto Rec Scr Matter Collected 590 | 266 25 . 133 136 10 20 Remotely . | . . . . . . . Salvage Created 1064 | 80 40 . 169 579 196 . Parts 81 | 14 6 . 15 37 9 . Haulers Intercepted 2 | . . . 1 1 . . Recyclers Shooed . | . . . . . . . Parts Field Recycled . | . . . . . . . Retrieved Matter . | . . . . . . . Parts Self-Destructed 3 | . . . . . . 3 Prevented 2 | . . . . . . 2 Kills | -11 -10 -10 -9 -9 -9 -9 ------- Run | Yrd Mat Min Mat Sto Rec Scr Combat Hostiles Destroyed 17 | . 2 . 4 9 2 . Guns 2 | . 2 . . . . . Cannons 12 | . . . 1 9 2 . AOE 3 | . . . 3 . . . Classes Destroyed 7 | 1 2 . 2 2 . . Tunneler 5 | 5 . . . . . . Hauler 2 | . . . 1 1 . . Recycler 2 | . . . . 1 1 . Watcher 3 | . 1 . 2 . . . Swarmer 5 | . 2 . 3 . . . Grunt 6 | . . . 1 5 . . Sentry 7 | . . . . 5 2 . Best Kill Streak 4 | 2 2 . 4 4 1 . Combat Bots Only 4 | . 2 . 3 4 1 . Max Kills in Single Turn 3 | 1 1 . 3 2 1 . Gunslinging . | . . . . . . . Exploded 3 | . . . 3 . . . Melee . | . . . . . . . Uniques/NPCs Destroyed . | . . . . . . . Combat | -11 -10 -10 -9 -9 -9 -9 -------- Run | Yrd Mat Min Mat Sto Rec Scr Hostile Shots Fired 233 | . 12 . 4 26 3 188 Missed 83 | . 3 . 1 7 . 72 Damage Taken 2024 | . 74 . 36 249 42 1623 Core 432 | . 25 . . 29 . 378 Absorbed by Shields . | . . . . . . . Core Remaining (%) 95 | 100 . 90 . . . . Volleys Fired 56 | 9 4 . 8 26 8 1 Largest 2 | 2 2 . 2 2 2 1 Hottest 136 | 70 70 . 136 136 136 68 Shots Fired 110 | 18 8 . 15 52 16 1 Gun 26 | 18 8 . . . . . Cannon 83 | . . . 14 52 16 1 Launcher 1 | . . . 1 . . . Special . | . . . . . . . Kinetic 13 | 9 4 . . . . . Thermal 96 | 9 4 . 14 52 16 1 Explosive 1 | . . . 1 . . . Electromagnetic . | . . . . . . . Robot Hit Streak 8 | 6 3 . 7 8 5 . Robot Miss Streak 2 | 2 1 . 1 2 1 . Penetration Max . | . . . . . . . Secondary Targets . | . . . . . . . Shots Hit Robots 66 | 11 5 . 11 29 8 2 Core Hits 32 | 5 3 . 8 13 3 . Critical Kills . | . . . . . . . Critical Parts Destroyed . | . . . . . . . Critical Strikes . | . . . . . . . Melee Attacks 11 | . . . . . . 11 Thermal 11 | . . . . . . 11 Impact . | . . . . . . . Slashing . | . . . . . . . Piercing . | . . . . . . . Sneak Attacks . | . . . . . . . Combat Hostiles . | . . . . . . . Follow-up Attacks . | . . . . . . . Damage Inflicted 1639 | 133 60 . 429 707 164 146 Guns 193 | 133 60 . . . . . Cannons 1103 | . . . 232 707 164 . Explosions 197 | . . . 197 . . . Melee 146 | . . . . . . 146 Ramming . | . . . . . . . Kinetic 81 | 45 36 . . . . . Thermal 1361 | 88 24 . 232 707 164 146 Explosive 197 | . . . 197 . . . Electromagnetic . | . . . . . . . Impact . | . . . . . . . Slashing . | . . . . . . . Piercing . | . . . . . . . Highest Corruption 3 | . . . . . . 3 Average Corruption 1 | . . . . . . 1 Corruption Purged . | . . . . . . . Corruption Blocked . | . . . . . . . Effects 2 | . . . . . . 2 Message Errors 1 | . . . . . . 1 Matter Fused 1 | . . . . . . 1 Overload Shots . | . . . . . . . Overflow Damage 51 | . . . . . . 51 Projectiles . | . . . . . . . Explosions . | . . . . . . . Melee 51 | . . . . . . 51 Knockbacks . | . . . . . . . Impact . | . . . . . . . Kinetic . | . . . . . . . Secondary . | . . . . . . . Self-Inflicted Damage . | . . . . . . . Shots . | . . . . . . . Rammed . | . . . . . . . Targets Rammed . | . . . . . . . Kicked . | . . . . . . . Crushed . | . . . . . . . Highest Temperature 257 | 27 27 . 114 225 234 257 Average Temperature 78 | 10 12 . 52 86 92 98 Received Heat Transfer 480 | . . . 18 117 9 336 Siege Activations . | . . . . . . . Robots Corrupted . | . . . . . . . Combat Hostiles . | . . . . . . . Parts Fried . | . . . . . . . Impact Corruptions . | . . . . . . . Robots Melted . | . . . . . . . Combat Hostiles . | . . . . . . . Parts Melted 1 | . . . . 1 . . Heat Transferred 2460 | 259 74 . 370 1221 296 240 Parts Sabotaged . | . . . . . . . Parts Stolen . | . . . . . . . Parts Stripped . | . . . . . . . Power Chain Reactions . | . . . . . . . Alert | -11 -10 -10 -9 -9 -9 -9 ------- Run | Yrd Mat Min Mat Sto Rec Scr Peak Influence 401 | 25 88 34 207 401 236 . Initial 92 | . 16 34 13 2 92 . Average 97 | 10 66 34 83 213 81 . Maximum Alert Level 2 | . . . 1 2 1 . Low Security (%) 80 | 100 100 100 81 38 90 . Level 1 19 | . . . 18 57 9 . Level 2 . | . . . . 4 . . Level 3 . | . . . . . . . Level 4 . | . . . . . . . Level 5 . | . . . . . . . High Security . | . . . . . . . Max Security . | . . . . . . . Squads Dispatched 5 | . . . 1 4 . . Investigation . | . . . . . . . Extermination . | . . . . . . . Reinforcement 4 | . . . 1 3 . . Assault . | . . . . . . . Garrison 1 | . . . . 1 . . Intercept . | . . . . . . . Searches Triggered . | . . . . . . . Construction Impeded . | . . . . . . . Haulers Reinforced . | . . . . . . . Active Scanning Responses . | . . . . . . . Cargo Convoy Interrupts . | . . . . . . . Stealth | -11 -10 -10 -9 -9 -9 -9 --------- Run | Yrd Mat Min Mat Sto Rec Scr Distress Signals 1 | . . . . 1 . . Communications Jammed . | . . . . . . . Distress Signals . | . . . . . . . Times Spotted 60 | . 4 . 8 20 2 26 Peak Tracking Total 30 | . 3 . 4 3 1 30 Tactical Retreats 1 | . . . . . . 1 Traps | -11 -10 -10 -9 -9 -9 -9 ------- Run | Yrd Mat Min Mat Sto Rec Scr Traps Triggered . | . . . . . . . Indirectly . | . . . . . . . Trap Hack Attempts . | . . . . . . . Triggered . | . . . . . . . Disarmed . | . . . . . . . Reprogrammed . | . . . . . . . Reused . | . . . . . . . Traps Extracted . | . . . . . . . Installed . | . . . . . . . Triggered . | . . . . . . . Machines | -11 -10 -10 -9 -9 -9 -9 ---------- Run | Yrd Mat Min Mat Sto Rec Scr Machines Disabled 8 | . . . 3 2 . 3 Max in Single Turn 2 | . . . 2 1 . 1 Machines Repaired . | . . . . . . . Machines Dismantled . | . . . . . . . Machines Sabotaged . | . . . . . . . Overloaded Fab Kills . | . . . . . . . Hacking | -11 -10 -10 -9 -9 -9 -9 --------- Run | Yrd Mat Min Mat Sto Rec Scr Machines Accessed 19 | . . . 2 4 10 3 Terminals 11 | . . . 2 4 5 . Fabricators . | . . . . . . . Repair Stations . | . . . . . . . Recycling Units 5 | . . . . . 5 . Scanalyzers . | . . . . . . . Garrison Access . | . . . . . . . Total Hacks 58 | . . . 11 16 25 6 Successful 32 | . . . 5 7 14 6 Failed 26 | . . . 6 9 11 . Catastrophic 1 | . . . . 1 . . Database Lockouts . | . . . . . . . Manual 37 | . . . 8 8 21 . Terminals 45 | . . . 11 16 18 . Fabricators . | . . . . . . . Repair Stations . | . . . . . . . Recycling Units 7 | . . . . . 7 . Scanalyzers . | . . . . . . . Garrison Access . | . . . . . . . Terminal Hacks 14 | . . . 2 4 2 6 Record 5 | . . . . . . 5 Part Schematic 1 | . . . . . 1 . Prototype ID Bank 1 | . . . . . 1 . Open Door 1 | . . . . 1 . . Branch Access Points 1 | . . . . 1 . . Terminal Index 2 | . . . 1 1 . . Unreport Threat 1 | . . . . 1 . . Zone Layout 1 | . . . 1 . . . Derelict Proto ID Bank 1 | . . . . . . 1 Fabricator Hacks . | . . . . . . . Repair Station Hacks . | . . . . . . . Recycling Unit Hacks . | . . . . . . . Scanalyzer . | . . . . . . . Garrison Access Hacks . | . . . . . . . Unauthorized Hacks 18 | . . . 3 3 12 . Terminals 13 | . . . 3 3 7 . Botnet 5 | . . . 2 1 2 . Skim 8 | . . . 1 2 5 . Fabricators . | . . . . . . . Repair Stations . | . . . . . . . Recycling Units 5 | . . . . . 5 . Tunnel 5 | . . . . . 5 . Scanalyzers . | . . . . . . . Garrison Access . | . . . . . . . Data Cores Recovered . | . . . . . . . Used . | . . . . . . . Hacking Detections 12 | . . . 2 5 5 . Full Trace Events . | . . . . . . . Feedback Events . | . . . . . . . Feedback Blocked . | . . . . . . . Robot Schematics Acquired . | . . . . . . . Robots Built . | . . . . . . . Authchips . | . . . . . . . Time . | . . . . . . . Total Robot Build Rating . | . . . . . . . Part Schematics Acquired 1 | . . . . . 1 . Parts Built . | . . . . . . . Authchips . | . . . . . . . Time . | . . . . . . . Total Part Build Rating . | . . . . . . . Parts Repaired . | . . . . . . . Time . | . . . . . . . Parts Recycled . | . . . . . . . Recycled Matter . | . . . . . . . Retrieved Matter . | . . . . . . . Retrieved Components . | . . . . . . . Parts Scanalyzed . | . . . . . . . Part Schematics Acquired . | . . . . . . . Parts Damaged . | . . . . . . . Bothacking | -11 -10 -10 -9 -9 -9 -9 ------------ Run | Yrd Mat Min Mat Sto Rec Scr Used RIF Installer . | . . . . . . . Robots Hacked . | . . . . . . . Non-combat . | . . . . . . . Combat . | . . . . . . . Robot Hacks Applied . | . . . . . . . Relay Couplers Released . | . . . . . . . Fabnet Peak Effective % . | . . . . . . . Robots Rewired . | . . . . . . . Allies Hacked . | . . . . . . . Hacks Repelled . | . . . . . . . Allies | -11 -10 -10 -9 -9 -9 -9 -------- Run | Yrd Mat Min Mat Sto Rec Scr Total Allies 11 | . . 1 . 10 . . Largest Group 10 | . . 1 1 10 1 . Highest-Rated Group 88 | . . 31 31 88 8 . Highest-Rated Ally 31 | . . 31 31 16 8 . Total Orders . | . . . . . . . Ally Attacks 74 | . . . 2 70 2 . Total Damage 680 | . . . . 659 21 . Kills 11 | . . . . 11 . . Allies Corrupted . | . . . . . . . Allies Melted . | . . . . . . . Intel | -11 -10 -10 -9 -9 -9 -9 ------- Run | Yrd Mat Min Mat Sto Rec Scr Robot Analysis Total . | . . . . . . . Derelict Logs Recovered . | . . . . . . . Drone Launches . | . . . . . . . Drone Recoveries . | . . . . . . . Exploration | -11 -10 -10 -9 -9 -9 -9 ------------- Run | Yrd Mat Min Mat Sto Rec Scr Turns Passed 4333 | 273 119 136 413 508 1014 1870 Spaces Moved 2388 | 134 66 108 204 227 575 1074 Core 3 | 3 . . . . . . Treads 2198 | 131 31 . 189 227 575 1045 Legs 187 | . 35 108 15 . . 29 Wheels . | . . . . . . . Hover . | . . . . . . . Flight . | . . . . . . . Fastest Speed 50 | 50 120 120 120 170 170 120 Average Speed 165 | 157 139 120 166 170 170 168 Slowest Speed 190 | 160 190 120 170 170 170 170 Overloaded Moves . | . . . . . . . Propulsion Burnouts . | . . . . . . . Robots Hopped . | . . . . . . . Cave-ins Triggered . | . . . . . . . Exploration Rate (%) 42 | 9 13 41 19 48 99 68 Regions Visited 6 Branch Regions 4 Pre-discovered Areas 8 | . . . . . 8 . Known Exits Taken 3 | . . . 1 1 1 . Unknown Exits Taken 3 | 1 1 1 . . . . Scrap Searched 2 | . . . . . . 2 Spaces Dug 2 | . . . . . . 2 Terrain Destroyed 2 | . . . . . . 2 Melee 2 | . . . . . . 2 Projectile . | . . . . . . . AOE . | . . . . . . . Terrain Rammed . | . . . . . . . Walls Destroyed . | . . . . . . . Machines Disabled . | . . . . . . . Actions | -11 -10 -10 -9 -9 -9 -9 --------- Run | Yrd Mat Min Mat Sto Rec Scr Total 2651 | 175 84 114 264 301 596 1117 Wait 93 | 24 . 5 18 24 14 8 Move 2382 | 133 65 107 203 226 574 1074 Hop . | . . . . . . . Pick Up 27 | 2 5 2 10 4 . 4 Fast Attach 23 | 6 4 . 6 5 . 2 Attach 8 | 1 . . 4 1 . 2 Detach 9 | . . . 5 3 . 1 Swap 10 | . 1 . 3 1 . 5 Drop 31 | . 5 . 7 10 . 9 Fire 56 | 9 4 . 8 26 8 1 Melee 11 | . . . . . . 11 Ram . | . . . . . . . Kick . | . . . . . . . Crush . | . . . . . . . Escape Stasis . | . . . . . . . Rewire 1 | . . . . 1 . . Trap . | . . . . . . . Miscellaneous . | . . . . . . . Route ------- -11/Scrapyard -10/Materials -10/Mines -9/Materials -9/Storage -9/Recycling (discovered 2 exits: [*Fac] / *Scr) -9/Scraptown History --------- Turn | Location | Event 14 | -11/Scrapyard | Discovered new exit (range 15) 274 | -11/Scrapyard | Entered Materials 313 | -10/Materials | Build established: Mutant 325 | -10/Materials | Discovered new exit (range 9) 393 | -10/Materials | Entered Mines 435 | -10/Mines | A weapon hastily lodged in a ceiling crevice suddenly fell to the ground 487 | -10/Mines | Received a Rocket Launcher from a helpful Derelict 511 | -10/Mines | Discovered new exit (range 16) 522 | -10/Mines | Received a Mining Laser from a helpful Derelict 529 | -10/Mines | Entered Materials 529 | -9/Materials | Accompanied by 1 ally 529 | -9/Materials | Evolved 2 slots: Propulsion x1, Utility x1 534 | -9/Materials | Discovered new exit (range 4) 940 | -9/Materials | Identified exit to Storage 942 | -9/Materials | Entered Storage 1074 | -9/Storage | Identified exit to Recycling 1077 | -9/Storage | Assisted by bots powering up and referring to "LRC-V3" 1367 | -9/Storage | Lost 6 allies 1370 | -9/Storage | Garrison activated, responded to threat 1443 | -9/Storage | Used back door to open Recycling access 1450 | -9/Storage | Entered Recycling 1450 | -9/Recycling | Accompanied by 1 ally 1782 | -9/Recycling | Discovered new exit (range 15) 2223 | -9/Recycling | Learned location of Mines (-9) 2258 | -9/Recycling | Learned Storage security intel 2302 | -9/Recycling | Identified exit to Scraptown 2319 | -9/Recycling | Learned location of Storage (-9) 2347 | -9/Recycling | Loaded intel: 5 recycling unit locations 2425 | -9/Recycling | Scanned before Scraplab entrance 2449 | -9/Recycling | Entered Scraplab 2464 | -9/Recycling | Entered Scraptown 2568 | -9/Scraptown | Visited UFD Registry 2568 | -9/Scraptown | Registered with UFD as "Macesys" 2614 | -9/Scraptown | Visited Comm Corps 2684 | -9/Scraptown | Visited IN-MT5's Study 2708 | -9/Scraptown | Visited Red Mages 2764 | -9/Scraptown | Visited Cyclists 2776 | -9/Scraptown | Entered Cyclist Reading Room 2818 | -9/Scraptown | Visited Fellowship of the Rings 3164 | -9/Scraptown | Visited Observation Area 3229 | -9/Scraptown | Visited Science Guys 3283 | -9/Scraptown | Visited Derelict Rescue Squad 3299 | -9/Scraptown | Found DRS Beacon 3504 | -9/Scraptown | Visited Curators Association 3556 | -9/Scraptown | Visited Research Penetration Think Tank 3592 | -9/Scraptown | Visited Science Testing Area 3611 | -9/Scraptown | Visited Modified Component R&D 3719 | -9/Scraptown | Found Scrap Suit 3793 | -9/Scraptown | Visited Junk Repository 3843 | -9/Scraptown | Visited Abandonware Association 3855 | -9/Scraptown | Learned abandonware demo "OVRCLOCK.EXE" 3863 | -9/Scraptown | Learned abandonware demo "HACKBUD.EXE" 3904 | -9/Scraptown | Visited Chapter 10 4209 | -9/Scraptown | Attacked by Scraptown defenders 4216 | -9/Scraptown | Found Thermal Lance 4294 | -9/Scraptown | Core integrity fell below 50% 4322 | -9/Scraptown | Core integrity fell below 20% 4334 | -9/Scraptown | Destroyed by TT-2K6(E) with Enhanced Autogun Last Messages --------------- 04319_ Bolt penetrates Machine. 04320_ HV Slug penetrates UFD Projects. 04320_ Penetrated by HV Slug. 04320_ HV Slug penetrates Machine. 04320_ HV Slug penetrates UFD Projects. 04320_ Critical hit (Destroy). 04320_ Imp. Aluminum Leg destroyed. 04320_ Bolt penetrates Machine. 04321_ Dropped Lrg. Storage Unit. 04321_ Bolt penetrates Machine. 04323_ HV Slug penetrates UFD Projects. 04323_ HV Slug penetrates Wall. 04324_ Bolt penetrates Machine. 04327_ Bolt penetrates Wall. 04331_ Machine disabled. 04332_ OI-C0O(j) heat short circuits Ovr. Titanium Leg. 04333_ Hvy. Ion Engine destroyed. 04334_ System corrupted: Matter fused (-6). 04334_ OI-C0O(j) destroyed. Map ----- +----------------------------------------------------+ | ?????????????????????????????????????????????????? | | ??????????????????##??##########???####??????????? | | ??????????????????"""?#""|##"""#??## ##????????#? | | ?????????????"" ##"" ##""|##! "#### ###### ## | | ?????????????"" !! # | | ????????????# # | | ??????????????##################### ##########? | | ??????????????????????????????????## ############ | | ???????????????????????????????????# #""""""""""" | | #########??????????????????????????# #" " #"""""" | | """"""""#?????###########??????????# # # = " | | " #?????#"""""""""#??????????# ####+# = | | ""#?????# " " " #??????????# #""" | | ""#?????# #??????????# #"= | | """"#?????# "# #" ############ #"" """" | | " ""#?????# "#X#" ##!!#/!!# =# #" "### | | """"#?????# "###" ##!=#=!!#! # #X """" | | ""#?????# """"" ## # # # ## [ = | | "#?????# ## # #" | | #?????# ## # #" | | ###### ##?????#### ########### ##### ## ######### | | ?##### ########### ########### ##### ## ######### | | ?#"""" """"""""""" """""" """" """"" "" "## | | ?#" c = "## | | ?#" c !% "## | | ?#" @ "## | | ?#" "## | | ##" | | "" """"""""""""" """"""""""""" "## | | "" """""""""""""E"""""""""""""" "## | | "" ""###### ##E#############"" "## | | "" ""# ]h|||##????????#"" "######## | | "" ""# gp*=X"#????????#"" "##"""""" | | "" ""# hE"" ##????????#"" "## """"" | | "" ""# "" E "" X"#??????###"" "## " | | "" ""# " ######### #"" "## " | | ##" "" "" " | | ?#" "" "" "## | | ##" ""# " ######### #"" "## " | | ""# "" "" ""#??????###"" "## " """ | | ""# "" "" ##????????#"" "######## | | ""# ""#????????#"" "##"###"# | | ""# %= ##????????#"" "## "$" " | | ""###### ################"" "## """ " | | """"""" " """""""""""""""""" "## | | """" " " """""""""""""""" | | "## | | !!! "## | | / *%= "## | | "#" %& [! ## """ " | +----------------------------------------------------+ Best States ------------- Heat Dissipation 28 Energy Generation 14 Energy Capacity 280 Matter Stores 300 Matter Capacity 300 Sight Range 16 Terrain Scan Density 10 Armor Coverage 150 Evasion (%) 55 Recoil Reduction 3 Item Schematics ----------------- Ion Cannon | -9/Recycling | Hacked Robot Schematics ------------------ None Fabricated ------------ Nothing Alien Tech Used ----------------- None Achievements -------------- None Challenges ------------ None Game ------ Seed DisposableLaserSegregator Manual? 0 Play Time 00:26:50 Cumulative 351.7 hours Start 2024.09.12 @ 18:27:45 End 2024.09.12 @ 18:52:53 Sessions 1 Manual Loads 0 Difficulty Rogue Special Mode None Game No. 359 Rogue 354 Adventurer 5 Explorer 0 Win Type - Total 5 Types 4/0/0/1/0/0/0/0/0 Lore% 78 Gallery% 83 Achievement% 68 Wizard Run 0 Options --------- Layout 1 ASCII 0 Keyboard 0 Movement Mouse Keybinds 0 Fullscreen 1 Font 24/Terminus Map View 50x35 Zoom Use 0% Tactical HUD 1 Map Filters NONE Filters NONE Steam 1 RUN: 389d93b6-220b-4d4b-950e-e87b497ef776